fUSD/lending_fUSD_20240630
["ID","MTS","AMOUNT","RATE_DAILY","PERIOD"]
[330733679,1719743440305,-500.0,0.00013995,3]
[330733681,1719743440315,-500.0,0.00013995,3]
[330733683,1719743440325,-500.0,0.00013995,3]
[330733686,1719743440335,-500.0,0.00013995,2]
[330733689,1719743440346,-500.0,0.00013995,3]
[330733691,1719743440356,-500.0,0.00013995,3]
[330733693,1719743440366,-500.0,0.00013995,3]
[330733695,1719743440376,-500.0,0.00013995,3]
[330733697,1719743440387,-500.0,0.00013995,3]
[330733699,1719743440397,-500.0,0.00013995,3]
[330733701,1719743440407,-500.0,0.00013995,3]
[330733703,1719743440416,-665.84,0.00013995,3]
[330733705,1719743440426,-165.16,0.00013995,3]
[330733707,1719743440436,-500.0,0.00013995,3]
[330733709,1719743440446,-500.0,0.00013995,3]
[330733711,1719743440456,-961.29,0.00013995,3]
[330733713,1719743440466,-888.49,0.00013995,3]
[330733715,1719743440476,-500.0,0.00013995,3]
[330733717,1719743440486,-1005.34,0.00013995,3]
[330733719,1719743440496,-729.09,0.00013995,3]
[330733721,1719743440506,-500.0,0.00013995,3]
[330733723,1719743440517,-500.0,0.00013995,3]
[330733725,1719743440527,-500.0,0.00013995,3]
[330733727,1719743440537,-500.0,0.00013995,3]
[330733729,1719743440547,-500.0,0.00013995,3]
[330733731,1719743440557,-500.0,0.00013995,3]
[330733733,1719743440567,-500.0,0.00013995,3]
[330733735,1719743440577,-500.0,0.00013995,3]
[330733737,1719743440587,-500.0,0.00013995,3]
[330733739,1719743440597,-500.0,0.00013995,3]
[330733741,1719743440607,-500.0,0.00013995,3]
[330733743,1719743440618,-500.0,0.00013995,3]
[330733745,1719743440628,-500.0,0.00013995,3]
[330733747,1719743440639,-500.0,0.00013995,3]
[330733749,1719743440653,-180.76,0.00013995,3]
[330733751,1719743440663,-612.49932641,0.00013995,3]
[330733753,1719743440674,-694.61,0.00013995,3]
[330733755,1719743440685,-500.0,0.00013995,3]
[330733757,1719743440696,-500.0,0.00013995,3]
[330733759,1719743440706,-500.0,0.00013995,3]
[330733761,1719743440718,-500.0,0.00013995,3]
[330733763,1719743440731,-500.0,0.00013995,3]
[330733765,1719743440741,-500.0,0.00013995,3]
[330733767,1719743440751,-500.0,0.00013995,3]
[330733769,1719743440761,-542.52,0.00013995,3]
[330733771,1719743440772,-500.0,0.00013995,3]
[330733773,1719743440782,-500.0,0.00013995,3]
[330733775,1719743440792,-500.0,0.00013995,3]
[330733777,1719743440802,-619.99,0.00013995,3]
[330733779,1719743440812,-500.0,0.00013995,3]
[330733781,1719743440822,-500.0,0.00013995,3]
[330733783,1719743440831,-779.98,0.00013995,3]
[330733785,1719743440842,-653.02,0.00013995,3]
[330733787,1719743440852,-500.0,0.00013995,3]
[330733788,1719743440862,-500.0,0.00013995,3]
[330733789,1719743440872,-500.0,0.00013995,3]
[330733790,1719743440882,-771.81,0.00013995,3]
[330733791,1719743440892,-500.0,0.00013995,3]
[330733792,1719743440902,-1062.63,0.00013995,3]
[330733793,1719743440912,-500.0,0.00013995,3]
[330733794,1719743440921,-500.0,0.00013995,3]
[330733795,1719743440930,-709.26,0.00013995,3]
[330733796,1719743440940,-500.0,0.00013995,3]
[330733797,1719743440950,-924.49,0.00013995,3]
[330733798,1719743440960,-500.0,0.00013995,3]
[330733799,1719743440969,-500.0,0.00013995,3]
[330733800,1719743440979,-500.0,0.00013995,3]
[330733801,1719743440988,-500.0,0.00013995,3]
[330733802,1719743440998,-500.0,0.00013995,3]
[330733803,1719743441008,-500.0,0.00013995,3]
[330733804,1719743441019,-500.0,0.00013995,3]
[330733805,1719743441028,-500.0,0.00013995,3]
[330733806,1719743441037,-500.0,0.00013995,3]
[330733807,1719743441047,-500.0,0.00013995,3]
[330733808,1719743441057,-668.04,0.00013995,3]
[330733809,1719743441067,-1252.34,0.00013995,3]
[330733810,1719743441077,-500.0,0.00013995,3]
[330733811,1719743441087,-500.0,0.00013995,3]
[330733812,1719743441096,-500.0,0.00013995,3]
[330733813,1719743441105,-500.0,0.00013995,3]
[330733814,1719743441115,-501.81864317,0.00013995,3]
[330733815,1719743441124,-500.0,0.00013995,3]
[330733816,1719743441133,-500.0,0.00013995,3]
[330733817,1719743441143,-500.0,0.00013995,3]
[330733818,1719743441152,-562.87,0.00013995,3]
[330733819,1719743441161,-500.0,0.00013995,3]
[330733820,1719743441171,-500.0,0.00013995,3]
[330733821,1719743441181,-500.0,0.00013995,3]
[330733822,1719743441191,-500.0,0.00013995,3]
[330733823,1719743441200,-500.0,0.00013995,3]
[330733824,1719743441210,-500.0,0.00013995,3]
[330733825,1719743441219,-500.0,0.00013995,3]
[330733826,1719743441229,-500.0,0.00013995,3]
[330733827,1719743441239,-500.0,0.00013995,3]
[330733828,1719743441248,-620.46,0.00013995,3]
[330733829,1719743441258,-277.92203026,0.00013995,3]
[330733830,1719743441268,-500.0,0.00013995,3]
[330733831,1719743441277,-500.0,0.00013995,3]
[330733832,1719743441287,-500.0,0.00013995,3]
[330733833,1719743441297,-500.0,0.00013995,3]
[330733834,1719743441307,-586.03268717,0.00013995,3]
[330733835,1719743441316,-500.0,0.00013995,3]
[330733836,1719743441325,-609.13,0.00013995,3]
[330733837,1719743441335,-634.09,0.00013995,3]
[330733838,1719743441344,-500.0,0.00013995,3]
[330733839,1719743441354,-504.7491795,0.00013995,3]
[330733840,1719743441363,-500.0,0.00013995,3]
[330733841,1719743441373,-500.0,0.00013995,3]
[330733842,1719743441383,-500.0,0.00013995,3]
[330733843,1719743441392,-500.0,0.00013995,3]
[330733844,1719743441402,-500.0,0.00013995,3]
[330733845,1719743441412,-856.35,0.00013995,3]
[330733854,1719743441501,-642.81,0.00013995,3]
[330733856,1719743441510,-500.0,0.00013995,3]
[330733858,1719743441520,-500.0,0.00013995,3]
[330733860,1719743441529,-500.0,0.00013995,3]
[330733861,1719743441539,-500.0,0.00013995,3]
[330733862,1719743441549,-645.16,0.00013995,3]
[330733863,1719743441559,-500.0,0.00013995,3]
[330733864,1719743441568,-582.03,0.00013995,3]
[330733865,1719743441577,-503.07,0.00013995,3]
[330733866,1719743441586,-500.0,0.00013995,3]
[330733867,1719743441595,-500.0,0.00013995,3]
[330733868,1719743441605,-500.0,0.00013995,3]
[330733869,1719743441615,-500.0,0.00013995,3]
[330733870,1719743441624,-500.0,0.00013995,3]
[330733871,1719743441633,-500.0,0.00013995,2]
[330733872,1719743441647,-500.0,0.00013995,3]
[330733873,1719743441658,-500.0,0.00013995,3]
[330733874,1719743441669,-500.0,0.00013995,3]
[330733875,1719743441678,-500.0,0.00013995,3]
[330733876,1719743441689,-26.88392087,0.00013995,3]
[330733877,1719743442270,-473.11607913,0.00013995,3]
[330733878,1719743442279,-348.60392087,0.00013995,3]
[330733879,1719743442291,-151.39607913,0.00013995,3]
[330733880,1719743442301,-718.78,0.00013995,3]
[330733881,1719743442310,-500.0,0.00013995,3]
[330733882,1719743442319,-511.0,0.00013995,3]
[330733883,1719743442328,-500.0,0.00013995,3]
[330733884,1719743442338,-500.0,0.00013995,3]
[330733885,1719743442347,-647.83,0.00013995,3]
[330733886,1719743442356,-500.0,0.00013995,3]
[330733887,1719743442365,-691.3,0.00013995,3]
[330733888,1719743442374,-500.0,0.00013995,3]
[330733889,1719743442383,-500.0,0.00013995,3]
[330733890,1719743442392,-500.0,0.00013995,3]
[330733891,1719743442401,-570.88573947,0.00013995,3]
[330733892,1719743442410,-500.0,0.00013995,3]
[330733893,1719743442420,-500.0,0.00013995,3]
[330733894,1719743442429,-510.36,0.00013995,3]
[330733895,1719743442439,-500.0,0.00013995,3]
[330733896,1719743442448,-1565.89,0.00013995,3]
[330733897,1719743442459,-703.17,0.00013995,3]
[330733898,1719743442468,-569.2588303,0.00013995,3]
[330733899,1719743442478,-500.0,0.00013995,3]
[330733900,1719743442487,-500.0,0.00013995,3]
[330733901,1719743442496,-4096.96,0.00013995,3]
[330733902,1719743442506,-500.0,0.00013995,3]
[330733903,1719743442515,-500.0,0.00013995,3]
[330733904,1719743442524,-500.0,0.00013995,3]
[330733905,1719743442534,-554.26,0.00013995,3]
[330733906,1719743442543,-1335.77,0.00013995,3]
[330733907,1719743442553,-500.0,0.00013995,3]
[330733908,1719743442562,-500.0,0.00013995,3]
[330733909,1719743442571,-500.0,0.00013995,2]
[330733910,1719743442581,-500.0,0.00013995,3]
[330733911,1719743442590,-500.0,0.00013995,3]
[330733912,1719743442600,-500.0,0.00013995,3]
[330733913,1719743442609,-500.0,0.00013995,3]
[330733914,1719743442618,-675.73,0.00013995,3]
[330733915,1719743442627,-500.0,0.00013995,3]
[330733916,1719743442641,-500.0,0.00013995,3]
[330733917,1719743442654,-634.86,0.00013995,3]
[330733918,1719743442664,-500.0,0.00013995,3]
[330733919,1719743442673,-500.0,0.00013995,3]
[330733920,1719743442683,-500.0,0.00013995,3]
[330733921,1719743442694,-500.0,0.00013995,3]
[330733922,1719743442703,-500.0,0.00013995,3]
[330733923,1719743442712,-752.7,0.00013995,3]
[330733924,1719743442721,-782.35,0.00013995,3]
[330733925,1719743442733,-500.0,0.00013995,3]
[330733926,1719743442743,-500.0,0.00013995,3]
[330733927,1719743442752,-1985.13,0.00013995,3]
[330733928,1719743442762,-500.0,0.00013995,3]
[330733929,1719743442771,-500.0,0.00013995,3]
[330733930,1719743442781,-500.0,0.00013995,3]
[330733931,1719743442790,-500.0,0.00013995,3]
[330733932,1719743442799,-500.0,0.00013995,3]
[330733933,1719743442809,-500.0,0.00013995,3]
[330733934,1719743442818,-500.0,0.00013995,3]
[330733935,1719743442827,-500.0,0.00013995,3]
[330733936,1719743442836,-617.21582094,0.00013995,3]
[330733937,1719743442845,-515.74,0.00013995,3]
[330733938,1719743442855,-863.74,0.00013995,3]
[330733939,1719743442864,-500.0,0.00013995,3]
[330733940,1719743442874,-500.0,0.00013995,3]
[330733941,1719743442884,-500.0,0.00013995,3]
[330733942,1719743442894,-1616.09,0.00013995,2]
[330733943,1719743442903,-500.0,0.00013995,3]
[330733944,1719743442912,-500.0,0.00013995,3]
[330733945,1719743442922,-502.07,0.00013995,3]
[330733946,1719743442931,-500.0,0.00013995,3]
[330733947,1719743442940,-657.17,0.00013995,3]
[330733948,1719743442950,-500.0,0.00013995,3]
[330733949,1719743442959,-500.0,0.00013995,3]
[330733950,1719743442968,-500.0,0.00013995,3]
[330733951,1719743442978,-500.0,0.00013995,3]
[330733952,1719743442987,-500.0,0.00013995,3]
[330733953,1719743442996,-500.0,0.00013995,3]
[330733954,1719743443005,-500.0,0.00013995,3]
[330733955,1719743443014,-500.0,0.00013995,3]
[330733956,1719743443023,-667.97,0.00013995,3]
[330733957,1719743443032,-500.0,0.00013995,3]
[330733958,1719743443041,-500.0,0.00013995,3]
[330733959,1719743443052,-500.0,0.00013995,3]
[330733960,1719743443061,-500.0,0.00013995,3]
[330733961,1719743443070,-500.0,0.00013995,3]
[330733962,1719743443083,-500.0,0.00013995,3]
[330733963,1719743443092,-500.0,0.00013995,3]
[330733964,1719743443101,-500.0,0.00013995,3]
[330733965,1719743443111,-500.0,0.00013995,3]
[330733966,1719743443120,-500.0,0.00013995,3]
[330733967,1719743443129,-536.93,0.00013995,3]
[330733968,1719743443139,-762.08,0.00013995,3]
[330733970,1719743443148,-1752.05,0.00013995,3]
[330733972,1719743443157,-500.0,0.00013995,3]
[330733973,1719743443166,-672.2,0.00013995,3]
[330733975,1719743443176,-500.0,0.00013995,3]
[330733977,1719743443186,-500.0,0.00013995,3]
[330733978,1719743443195,-500.0,0.00013995,3]
[330733979,1719743443205,-500.0,0.00013995,3]
[330733980,1719743443214,-500.0,0.00013995,3]
[330733981,1719743443223,-500.0,0.00013995,3]
[330733982,1719743443232,-500.0,0.00013995,3]
[330733983,1719743443242,-500.0,0.00013995,3]
[330733984,1719743443253,-500.0,0.00013995,3]
[330733985,1719743443262,-500.0,0.00013995,3]
[330733986,1719743443271,-500.0,0.00013995,3]
[330733987,1719743443281,-500.0,0.00013995,3]
[330733988,1719743443290,-500.0,0.00013995,3]
[330733989,1719743443303,-1553.86,0.00013995,3]
[330733990,1719743443313,-500.0,0.00013995,3]
[330733991,1719743443322,-500.0,0.00013995,3]
[330733992,1719743443332,-500.0,0.00013995,3]
[330733993,1719743443341,-532.76,0.00013995,3]
[330733994,1719743443351,-500.0,0.00013995,3]
[330733995,1719743443360,-500.0,0.00013995,3]
[330733996,1719743443370,-1254.18,0.00013996,3]
[330733997,1719743443379,-3730.93,0.00013996,3]
[330733998,1719743443389,-1160.87,0.00013996,3]
[330733999,1719743443398,-500.0,0.00013996,3]
[330734000,1719743443407,-500.0,0.00013996,3]
[330734001,1719743443417,-543.58,0.00013996,3]
[330734002,1719743443427,-500.0,0.00013996,2]
[330734003,1719743443437,-1070.8,0.00013996,3]
[330734004,1719743443446,-635.62,0.00013996,3]
[330734005,1719743443456,-500.0,0.00013996,3]
[330734006,1719743443466,-500.0,0.00013996,2]
[330734007,1719743443475,-3014.28,0.00013996,3]
[330734008,1719743443485,-1399.6,0.00013996,3]
[330734009,1719743443494,-5243.75,0.00013996,3]
[330734010,1719743443505,-500.0,0.00013996,2]
[330734011,1719743443515,-500.0,0.00013996,3]
[330734012,1719743443525,-1972.98,0.00013996,3]
[330734013,1719743443534,-1357.94,0.00013996,3]
[330734014,1719743443544,-512.42039066,0.00013997,2]
[330734015,1719743443555,-500.0,0.00013997,2]
[330734016,1719743443566,-500.0,0.00013997,2]
[330734017,1719743443576,-500.0,0.00013998,2]
[330734018,1719743443586,-500.0,0.00013999,2]
[330734019,1719743443595,-500.0,0.00013999,2]
[330734020,1719743443605,-500.0,0.00013999,2]
[330734021,1719743443615,-500.0,0.00013999,2]
[330734022,1719743443625,-500.0,0.00013999,2]
[330734023,1719743443636,-500.0,0.00013999,2]
[330734024,1719743443650,-500.0,0.00013999,2]
[330734025,1719743443659,-500.0,0.00013999,2]
[330734026,1719743443670,-500.0,0.00013999,2]
[330734027,1719743443679,-500.0,0.00013999,2]
[330734028,1719743443691,-500.0,0.00013999,2]
[330734029,1719743443700,-500.0,0.00013999,2]
[330734030,1719743443710,-500.0,0.00013999,2]
[330734031,1719743443720,-500.0,0.00013999,2]
[330734032,1719743443732,-500.0,0.00013999,2]
[330734033,1719743443742,-500.0,0.00013999,2]
[330734034,1719743443752,-500.0,0.00013999,2]
[330734035,1719743443762,-500.0,0.00013999,2]
[330734036,1719743443772,-500.0,0.00013999,2]
[330734037,1719743443782,-500.0,0.00013999,2]
[330734038,1719743443792,-500.0,0.00013999,2]
[330734039,1719743443802,-500.0,0.00013999,2]
[330734040,1719743443812,-500.0,0.00013999,2]
[330734041,1719743443822,-500.0,0.00013999,2]
[330734042,1719743443832,-500.0,0.00013999,2]
[330734043,1719743443842,-500.0,0.00013999,2]
[330734044,1719743443851,-500.0,0.00013999,2]
[330734045,1719743443861,-334.38452635,0.00013999,2]
[330734046,1719743443871,-500.0,0.00013999,2]
[330734047,1719743443880,-500.0,0.00013999,2]
[330734048,1719743443890,-500.0,0.00013999,2]
[330734049,1719743443899,-500.0,0.00013999,2]
[330734050,1719743443908,-500.0,0.00013999,2]
[330734051,1719743443918,-500.0,0.00013999,2]
[330734052,1719743443927,-392.5678668,0.00013999,2]
[330734053,1719743443941,-598.8921332,0.00013999,2]
[330734054,1719743443951,-500.0,0.00013999,2]
[330734055,1719743443960,-500.0,0.00013999,2]
[330734056,1719743443970,-500.0,0.00013999,2]
[330734057,1719743443979,-500.0,0.00013999,2]
[330734058,1719743443989,-500.0,0.00013999,2]
[330734059,1719743443999,-500.0,0.00013999,2]
[330734061,1719743444008,-1908.39,0.00013999,3]
[330734062,1719743444018,-1616.09,0.00013999,2]
[330734063,1719743444028,-1616.09,0.00013999,2]
[330734064,1719743444037,-1616.09,0.00013999,2]
[330734065,1719743444047,-1616.09,0.00013999,2]
[330734066,1719743444057,-1616.09,0.00013999,2]
[330734067,1719743444067,-1616.09,0.00013999,2]
[330734068,1719743444077,-1092.19,0.00013999,3]
[330734069,1719743444086,-1739.03,0.00013999,3]
[330734070,1719743444096,-910.78,0.00013999,3]
[330734071,1719743444105,-500.0,0.00013999,3]
[330734072,1719743444116,-1644.86,0.00013999,3]
[330734073,1719743444125,-387645.01518741,0.00014,2]
[330734074,1719743444137,-13111.38324138,0.00014,2]
[330734075,1719743444148,-3088.5955,0.00014,2]
[330734076,1719743446460,-9301.5,0.00014,2]
[330734077,1719743446471,-2104.93626584,0.00014,2]
[330734078,1719743446491,-2005.94786259,0.00014,2]
[330734079,1719743446502,-1068.89864221,0.00014,2]
[330734080,1719743446514,-1512.75792132,0.00014,2]
[330734081,1719743446623,-284.64340056,0.00014,2]
[330734082,1719743446635,-64592.92408173,0.00014,2]
[330734083,1719743446649,-184295.07591851,0.00014,2]
[330734084,1719743446660,-654.12187605,0.00014,2]
[330734085,1719743446890,-3405.91380266,0.00014,2]
[330734086,1719743446903,-2310.06028183,0.00014,2]
[330734087,1719743447005,-2875.82477649,0.00014,2]
[330734088,1719743447018,-372271.21747924,0.00014,2]
[330734089,1719743447030,-110798.12837452,0.00014,2]
[330734090,1719743447042,-15356.14239905,0.00014,2]
[330734091,1719743447056,-275.950685,0.00014,2]
[330734092,1719743447068,-1244.1,0.00014,2]
[330734093,1719743447080,-9037.0268405,0.00014,2]
[330734094,1719743447094,-8947.21879473,0.00014,2]
[330734095,1719743447106,-8943.78386462,0.00014,2]
[330734096,1719743447118,-9077.54866152,0.00014,2]
[330734097,1719743447130,-8943.84023489,0.00014,2]
[330734098,1719743447141,-147828.69725908,0.00014,2]
[330734099,1719743447230,-969.65529697,0.00014,2]
[330734100,1719743447243,-1497.84565076,0.00014,2]
[330734101,1719743447255,-929.28510333,0.00014,2]
[330734102,1719743447276,-3249.95340702,0.00014,2]
[330734103,1719743447287,-635.74,0.00014,2]
[330734104,1719743447298,-1737.35502401,0.00014,2]
[330734105,1719743447311,-356.69583525,0.00014,2]
[330734106,1719743447322,-843.4,0.00014,2]
[330734107,1719743447334,-13640.20182515,0.00014,2]
[330734108,1719743447346,-561.35192212,0.00014,2]
[330734109,1719743447359,-417.81286233,0.00014,2]
[330734110,1719743447370,-623.07,0.00014,2]
[330734111,1719743447952,-376.16154095,0.00014,2]
[330734112,1719743447968,-49824.0,0.00014,2]
[330734113,1719743447979,-274.733615,0.00014,2]
[330734114,1719743447991,-3972.09929284,0.00014,2]
[330734115,1719743448004,-433.70518186,0.00014,2]
[330734116,1719743448017,-396.2306656,0.00014,2]
[330734117,1719743448029,-659.99999999,0.00014,2]
[330734118,1719743448040,-18874.99312,0.00014,2]
[330734119,1719743448053,-1220.0,0.00014,2]
[330734120,1719743448064,-1650.31387522,0.00014,2]
[330734121,1719743448077,-107676.93692469,0.00014,2]
[330734122,1719743448087,-3310.0,0.00014,2]
[330734123,1719743448096,-461.65351825,0.00014,2]
[330734124,1719743448105,-151.0,0.00014,2]
[330734125,1719743448115,-151.0,0.00014,2]
[330734126,1719743448126,-151.0,0.00014,2]
[330734127,1719743448138,-152.040589,0.00014,2]
[330734128,1719743448148,-151.0,0.00014,2]
[330734129,1719743448158,-154.636986,0.00014,2]
[330734130,1719743448167,-151.0,0.00014,2]
[330734131,1719743448177,-151.0,0.00014,2]
[330734132,1719743448186,-151.0,0.00014,2]
[330734133,1719743448196,-151.0,0.00014,2]
[330734134,1719743448205,-246.414055,0.00014,2]
[330734135,1719743448215,-151.0,0.00014,2]
[330734136,1719743448225,-151.0,0.00014,2]
[330734137,1719743448235,-151.0,0.00014,2]
[330734138,1719743448246,-151.0,0.00014,2]
[330734139,1719743448256,-151.0,0.00014,2]
[330734140,1719743448266,-151.0,0.00014,2]
[330734141,1719743448275,-151.0,0.00014,2]
[330734142,1719743448285,-151.0,0.00014,2]
[330734143,1719743448294,-151.0,0.00014,2]
[330734144,1719743448303,-151.0,0.00014,2]
[330734145,1719743448313,-156.147499,0.00014,2]
[330734146,1719743448322,-154.986512,0.00014,2]
[330734147,1719743448331,-151.0,0.00014,2]
[330734148,1719743448341,-151.0,0.00014,2]
[330734149,1719743448350,-151.0,0.00014,2]
[330734150,1719743448359,-151.0,0.00014,2]
[330734151,1719743448368,-151.0,0.00014,2]
[330734152,1719743448377,-151.0,0.00014,2]
[330734153,1719743448387,-151.0,0.00014,2]
[330734154,1719743448396,-151.0,0.00014,2]
[330734155,1719743448405,-266.885929,0.00014,2]
[330734156,1719743448414,-266.885929,0.00014,2]
[330734157,1719743448423,-266.885929,0.00014,2]
[330734158,1719743448432,-266.885929,0.00014,2]
[330734159,1719743448442,-151.0,0.00014,2]
[330734160,1719743448451,-151.0,0.00014,2]
[330734161,1719743448460,-151.0,0.00014,2]
[330734162,1719743448470,-151.0,0.00014,2]
[330734163,1719743448479,-151.0,0.00014,2]
[330734164,1719743448488,-151.0,0.00014,2]
[330734165,1719743448497,-151.0,0.00014,2]
[330734166,1719743448507,-151.0,0.00014,2]
[330734167,1719743448516,-151.0,0.00014,2]
[330734168,1719743448525,-151.0,0.00014,2]
[330734169,1719743448535,-151.0,0.00014,2]
[330734170,1719743448544,-151.0,0.00014,2]
[330734171,1719743448553,-151.0,0.00014,2]
[330734172,1719743448564,-151.0,0.00014,2]
[330734173,1719743448573,-151.0,0.00014,2]
[330734174,1719743448583,-151.0,0.00014,2]
[330734175,1719743448592,-154.407604,0.00014,2]
[330734176,1719743448601,-151.0,0.00014,2]
[330734177,1719743448611,-151.0,0.00014,2]
[330734178,1719743448620,-151.0,0.00014,2]
[330734179,1719743448630,-151.0,0.00014,2]
[330734180,1719743448639,-151.0,0.00014,2]
[330734181,1719743448654,-311.14206,0.00014,2]
[330734182,1719743448663,-311.14206,0.00014,2]
[330734183,1719743448672,-311.14206,0.00014,2]
[330734184,1719743448681,-311.14206,0.00014,2]
[330734185,1719743448692,-151.0,0.00014,2]
[330734186,1719743448701,-151.0,0.00014,2]
[330734187,1719743448711,-151.0,0.00014,2]
[330734188,1719743448720,-151.0,0.00014,2]
[330734189,1719743448731,-151.0,0.00014,2]
[330734190,1719743448742,-151.0,0.00014,2]
[330734191,1719743448751,-288.211825,0.00014,2]
[330734192,1719743448761,-288.211825,0.00014,2]
[330734193,1719743448770,-288.211825,0.00014,2]
[330734194,1719743448779,-288.211825,0.00014,2]
[330734195,1719743448788,-161.276001,0.00014,2]
[330734196,1719743448798,-151.0,0.00014,2]
[330734197,1719743448808,-151.0,0.00014,2]
[330734198,1719743448817,-151.0,0.00014,2]
[330734199,1719743448827,-151.0,0.00014,2]
[330734200,1719743448836,-151.0,0.00014,2]
[330734201,1719743448846,-151.0,0.00014,2]
[330734202,1719743448856,-151.0,0.00014,2]
[330734203,1719743448865,-151.0,0.00014,2]
[330734204,1719743448874,-151.0,0.00014,2]
[330734205,1719743448884,-151.0,0.00014,2]
[330734206,1719743448893,-242.20959,0.00014,2]
[330734207,1719743448902,-151.0,0.00014,2]
[330734208,1719743448911,-151.0,0.00014,2]
[330734209,1719743448920,-151.0,0.00014,2]
[330734210,1719743448932,-151.0,0.00014,2]
[330734211,1719743448944,-151.0,0.00014,2]
[330734212,1719743448954,-151.0,0.00014,2]
[330734213,1719743448963,-151.0,0.00014,2]
[330734214,1719743448973,-151.0,0.00014,2]
[330734215,1719743448982,-151.0,0.00014,2]
[330734216,1719743448991,-151.0,0.00014,2]
[330734217,1719743448999,-151.0,0.00014,2]
[330734218,1719743449009,-151.0,0.00014,2]
[330734219,1719743449018,-473.901897,0.00014,2]
[330734220,1719743449027,-473.901897,0.00014,2]
[330734221,1719743449037,-473.901897,0.00014,2]
[330734222,1719743449046,-473.901897,0.00014,2]
[330734223,1719743449055,-151.0,0.00014,2]
[330734224,1719743449064,-151.0,0.00014,2]
[330734225,1719743449073,-3384.842801,0.00014,2]
[330734226,1719743449082,-3384.842801,0.00014,2]
[330734227,1719743449091,-151.0,0.00014,2]
[330734228,1719743449099,-3384.842801,0.00014,2]
[330734229,1719743449108,-151.0,0.00014,2]
[330734230,1719743449117,-3384.842801,0.00014,2]
[330734231,1719743449125,-151.0,0.00014,2]
[330734232,1719743449134,-151.0,0.00014,2]
[330734233,1719743449143,-151.0,0.00014,2]
[330734234,1719743449151,-233.760947,0.00014,2]
[330734235,1719743449160,-151.0,0.00014,2]
[330734236,1719743449169,-151.0,0.00014,2]
[330734237,1719743449178,-151.0,0.00014,2]
[330734238,1719743449188,-158.609768,0.00014,2]
[330734239,1719743449197,-520.285749,0.00014,2]
[330734240,1719743449206,-520.285749,0.00014,2]
[330734241,1719743449430,-520.285749,0.00014,2]
[330734242,1719743449440,-520.285749,0.00014,2]
[330734243,1719743449449,-163.690082,0.00014,2]
[330734244,1719743449459,-163.690082,0.00014,2]
[330734245,1719743449469,-163.690082,0.00014,2]
[330734246,1719743449478,-163.690082,0.00014,2]
[330734247,1719743449487,-151.0,0.00014,2]
[330734248,1719743449496,-151.0,0.00014,2]
[330734249,1719743449505,-248.915668,0.00014,2]